[Event "Early-Titled-Tuesday-Blitz-March-05-2024"]
[Site "Chess.com"]
[Date "2024.03.05"]
[Round "3"]
[White "Byniolus"]
[Black "JonSnowNW1"]
[Result "1-0"]
[WhiteElo "2820"]
[BlackElo "2542"]
[TimeControl "180+1"]
[EndTime "8:31:05 PST"]
[Termination "Byniolus won by checkmate"]

1. d4 {[%clk 0:03:00.9]} 1... d5 {[%clk 0:02:58.3]} 2. Nf3 {[%clk 0:03:00.8]}
2... Nf6 {[%clk 0:02:50.8]} 3. Bf4 {[%clk 0:03:00.9]} 3... c5 {[%clk 0:02:49]}
4. c3 {[%clk 0:03:01.4]} 4... e6 {[%clk 0:02:44.7]} 5. Nbd2 {[%clk 0:03:01.2]}
5... Nc6 {[%clk 0:02:44.3]} 6. e3 {[%clk 0:03:01.4]} 6... Bd6 {[%clk 0:02:43.5]}
7. Bg3 {[%clk 0:03:01.7]} 7... O-O {[%clk 0:02:42.9]} 8. Bd3 {[%clk 0:03:01.7]}
8... Re8 {[%clk 0:02:41.7]} 9. Ne5 {[%clk 0:03:01.7]} 9... cxd4 {[%clk
0:02:30.1]} 10. exd4 {[%clk 0:03:00.7]} 10... Qc7 {[%clk 0:02:22.5]} 11. f4
{[%clk 0:02:58.6]} 11... Ne7 {[%clk 0:02:14.8]} 12. Bf2 {[%clk 0:02:41.4]} 12...
Nd7 {[%clk 0:02:07.7]} 13. Bxh7+ {[%clk 0:02:37.4]} 13... Kf8 {[%clk 0:02:03.3]}
14. Bd3 {[%clk 0:02:17.4]} 14... Nf6 {[%clk 0:01:57.9]} 15. O-O {[%clk
0:02:13.3]} 15... g6 {[%clk 0:01:39.1]} 16. g4 {[%clk 0:02:06.3]} 16... Kg7
{[%clk 0:01:35.6]} 17. Bg3 {[%clk 0:02:01.8]} 17... Rh8 {[%clk 0:01:22]} 18. Qe2
{[%clk 0:02:01.3]} 18... Bd7 {[%clk 0:01:19]} 19. Rae1 {[%clk 0:01:55.2]} 19...
Rh3 {[%clk 0:01:15.9]} 20. Ndf3 {[%clk 0:01:42.6]} 20... Be8 {[%clk 0:00:52.4]}
21. Ng5 {[%clk 0:01:34.6]} 21... Rh8 {[%clk 0:00:52.1]} 22. f5 {[%clk
0:01:19.8]} 22... exf5 {[%clk 0:00:48]} 23. gxf5 {[%clk 0:01:20.7]} 23... Rh5
{[%clk 0:00:42.1]} 24. h4 {[%clk 0:00:41.8]} 24... gxf5 {[%clk 0:00:28.3]} 25.
Bxf5 {[%clk 0:00:42.7]} 25... Qb6 {[%clk 0:00:20]} 26. Bb1 {[%clk 0:00:36.1]}
26... Bb5 {[%clk 0:00:17.7]} 27. Bd3 {[%clk 0:00:14.7]} 27... Bxd3 {[%clk
0:00:17.7]} 28. Qxd3 {[%clk 0:00:15.6]} 28... Qxb2 {[%clk 0:00:16.5]} 29. Rxf6
{[%clk 0:00:14.6]} 29... Kxf6 {[%clk 0:00:15.2]} 30. Qf3+ {[%clk 0:00:14.4]}
30... Nf5 {[%clk 0:00:13.6]} 31. Qxh5 {[%clk 0:00:11.2]} 31... Nxg3 {[%clk
0:00:12.9]} 32. Qxf7# {[%clk 0:00:10.4]} 1-0

[Event "Early-Titled-Tuesday-Blitz-March-05-2024"]
[Site "Chess.com"]
[Date "2024.03.05"]
[Round "3"]
[White "Josetricks"]
[Black "K_A_S_T_O_R"]
[Result "1/2-1/2"]
[WhiteElo "2537"]
[BlackElo "2788"]
[TimeControl "180+1"]
[EndTime "8:31:05 PST"]
[Termination "Game drawn by agreement"]

1. c4 {[%clk 0:03:00.9]} 1... c5 {[%clk 0:02:57.5]} 2. Nf3 {[%clk 0:02:58.9]}
2... Nf6 {[%clk 0:02:57.1]} 3. Nc3 {[%clk 0:02:59.1]} 3... e6 {[%clk 0:02:56.9]}
4. e4 {[%clk 0:02:56.1]} 4... Nc6 {[%clk 0:02:53.1]} 5. Bd3 {[%clk 0:02:49.9]}
5... a6 {[%clk 0:02:50]} 6. O-O {[%clk 0:02:48.1]} 6... Qc7 {[%clk 0:02:49.5]}
7. Bc2 {[%clk 0:02:46.6]} 7... Ng4 {[%clk 0:02:48.6]} 8. h3 {[%clk 0:02:44.5]}
8... Nge5 {[%clk 0:02:48.1]} 9. Nxe5 {[%clk 0:02:43]} 9... Nxe5 {[%clk
0:02:41.8]} 10. b3 {[%clk 0:02:43.2]} 10... Nc6 {[%clk 0:02:37.9]} 11. Ne2
{[%clk 0:02:40]} 11... Be7 {[%clk 0:02:33.9]} 12. Bb2 {[%clk 0:02:39.7]} 12...
O-O {[%clk 0:02:33.7]} 13. d4 {[%clk 0:02:39]} 13... cxd4 {[%clk 0:02:33.3]} 14.
Nxd4 {[%clk 0:02:38.9]} 14... d6 {[%clk 0:02:28]} 15. Re1 {[%clk 0:02:36.3]}
15... Bd7 {[%clk 0:02:20.2]} 16. Qh5 {[%clk 0:02:28.4]} 16... g6 {[%clk
0:01:42.6]} 17. Qh6 {[%clk 0:02:23.7]} 17... Nxd4 {[%clk 0:01:38.4]} 18. Bxd4
{[%clk 0:02:23.5]} 18... e5 {[%clk 0:01:38.9]} 19. Be3 {[%clk 0:02:24.2]} 19...
Bf6 {[%clk 0:01:30.9]} 20. Rad1 {[%clk 0:02:18.2]} 20... Be6 {[%clk 0:01:30.8]}
21. Bg5 {[%clk 0:02:10.9]} 21... Bxg5 {[%clk 0:01:27.6]} 22. Qxg5 {[%clk
0:02:11.2]} 22... f6 {[%clk 0:01:27.9]} 23. Qd2 {[%clk 0:02:09.3]} 23... Rfd8
{[%clk 0:01:27.8]} 24. a3 {[%clk 0:02:03.8]} 24... a5 {[%clk 0:01:24.3]} 25. a4
{[%clk 0:02:01.3]} 25... Qc5 {[%clk 0:01:23.3]} 26. Re3 {[%clk 0:01:54.7]} 26...
Ra6 {[%clk 0:01:21.7]} 27. Rf3 {[%clk 0:01:51]} 27... Kg7 {[%clk 0:01:21.3]} 28.
Bd3 {[%clk 0:01:51.5]} 28... Rb6 {[%clk 0:01:20.4]} 29. Be2 {[%clk 0:01:49.6]}
29... Bd7 {[%clk 0:00:59.1]} 30. h4 {[%clk 0:01:44]} 30... Be6 {[%clk
0:00:55.7]} 31. h5 {[%clk 0:01:40.1]} 31... g5 {[%clk 0:00:45.1]} 32. h6+ {[%clk
0:01:38.4]} 32... Kg6 {[%clk 0:00:45.1]} 33. Qc2 {[%clk 0:01:28.7]} 33... Qc7
{[%clk 0:00:35.4]} 34. Qc3 {[%clk 0:01:26]} 34... Rc6 {[%clk 0:00:35.1]} 35. Rd2
{[%clk 0:01:05.9]} 35... Rc5 {[%clk 0:00:30.2]} 36. Rd1 {[%clk 0:00:57.4]} 36...
Qe7 {[%clk 0:00:30.1]} 37. Kf1 {[%clk 0:00:51.7]} 37... Kxh6 {[%clk 0:00:29.6]}
38. Qd2 {[%clk 0:00:50.1]} 38... Kg7 {[%clk 0:00:29.3]} 39. Rd3 {[%clk
0:00:48.5]} 39... Kf8 {[%clk 0:00:21.9]} 40. Rxd6 {[%clk 0:00:44.2]} 40... Rxd6
{[%clk 0:00:22.3]} 41. Qxd6 {[%clk 0:00:44.3]} 41... Qxd6 {[%clk 0:00:22.4]} 42.
Rxd6 {[%clk 0:00:45.2]} 42... Rc6 {[%clk 0:00:22.5]} 43. Rd8+ {[%clk 0:00:38.5]}
43... Kg7 {[%clk 0:00:21.9]} 44. Re8 {[%clk 0:00:37.1]} 44... Rb6 {[%clk
0:00:16.9]} 1/2-1/2

[Event "Early-Titled-Tuesday-Blitz-March-05-2024"]
[Site "Chess.com"]
[Date "2024.03.05"]
[Round "3"]
[White "dosto07"]
[Black "Shivananda1964"]
[Result "1-0"]
[WhiteElo "2560"]
[BlackElo "2334"]
[TimeControl "180+1"]
[EndTime "8:31:06 PST"]
[Termination "dosto07 won by resignation"]

1. e4 {[%clk 0:03:00.9]} 1... Nc6 {[%clk 0:02:58.6]} 2. Nf3 {[%clk 0:03:00.7]}
2... e5 {[%clk 0:02:57.7]} 3. Bb5 {[%clk 0:03:00.5]} 3... a6 {[%clk 0:02:57.9]}
4. Ba4 {[%clk 0:02:59.9]} 4... Nf6 {[%clk 0:02:58.2]} 5. O-O {[%clk 0:02:58.8]}
5... Be7 {[%clk 0:02:58.5]} 6. Re1 {[%clk 0:02:57.8]} 6... d6 {[%clk 0:02:58.6]}
7. Bxc6+ {[%clk 0:02:55.2]} 7... bxc6 {[%clk 0:02:58.2]} 8. d4 {[%clk
0:02:56.1]} 8... exd4 {[%clk 0:02:56.5]} 9. Nxd4 {[%clk 0:02:55.8]} 9... Bd7
{[%clk 0:02:55.6]} 10. Qf3 {[%clk 0:02:54.8]} 10... O-O {[%clk 0:02:53.7]} 11.
e5 {[%clk 0:02:55.1]} 11... dxe5 {[%clk 0:02:46.4]} 12. Nxc6 {[%clk 0:02:55.1]}
12... Bxc6 {[%clk 0:02:03.8]} 13. Qxc6 {[%clk 0:02:54.4]} 13... Qd6 {[%clk
0:01:55.7]} 14. Qc4 {[%clk 0:02:50.1]} 14... e4 {[%clk 0:01:39.9]} 15. Nc3
{[%clk 0:02:36.6]} 15... Ng4 {[%clk 0:01:27.7]} 16. g3 {[%clk 0:02:36.6]} 16...
Ne5 {[%clk 0:01:27.1]} 17. Qxe4 {[%clk 0:02:31.5]} 17... Bf6 {[%clk 0:00:20.7]}
18. Bf4 {[%clk 0:02:26.8]} 18... Rae8 {[%clk 0:00:16.3]} 19. Nd5 {[%clk
0:02:24.2]} 19... Qc5 {[%clk 0:00:03.4]} 20. Nxf6+ {[%clk 0:02:16.2]} 20... gxf6
{[%clk 0:00:03.5]} 21. Bxe5 {[%clk 0:02:15.7]} 21... fxe5 {[%clk 0:00:03]} 22.
Rad1 {[%clk 0:02:05.4]} 22... Re6 {[%clk 0:00:03.2]} 23. Rd5 {[%clk 0:02:01.3]}
23... Qb6 {[%clk 0:00:02.6]} 24. Rxe5 {[%clk 0:01:54.2]} 24... Rf6 {[%clk
0:00:03]} 25. Rg5+ {[%clk 0:01:51.5]} 25... Kh8 {[%clk 0:00:03.2]} 26. Rh5
{[%clk 0:01:50.4]} 26... Qxf2+ {[%clk 0:00:01.6]} 27. Kh1 {[%clk 0:01:48.6]}
27... Rg6 {[%clk 0:00:02.2]} 28. Qe2 {[%clk 0:01:35.2]} 28... Qxe2 {[%clk
0:00:01.8]} 29. Rxe2 {[%clk 0:01:34.9]} 29... Rd8 {[%clk 0:00:02.5]} 30. Kg2
{[%clk 0:01:33.9]} 30... Kg7 {[%clk 0:00:02.8]} 31. Rhe5 {[%clk 0:01:32.2]}
31... Rdd6 {[%clk 0:00:02.7]} 32. Re7 {[%clk 0:01:31.2]} 32... Rc6 {[%clk
0:00:03]} 33. Rf2 {[%clk 0:01:29]} 33... Rgf6 {[%clk 0:00:02.8]} 34. Rxf6 {[%clk
0:01:27.3]} 34... Kxf6 {[%clk 0:00:03.3]} 35. Re2 {[%clk 0:01:27.3]} 35... a5
{[%clk 0:00:03.8]} 36. Kf3 {[%clk 0:01:26]} 36... a4 {[%clk 0:00:03.6]} 37. Kg4
{[%clk 0:01:25]} 37... Rb6 {[%clk 0:00:03.9]} 38. b3 {[%clk 0:01:22.7]} 38... a3
{[%clk 0:00:04.3]} 39. Kh5 {[%clk 0:01:16.5]} 39... Rc6 {[%clk 0:00:04.5]} 40.
Kh6 {[%clk 0:01:15.4]} 40... Kf5+ {[%clk 0:00:03.4]} 41. Kxh7 {[%clk 0:01:15]}
41... Kg4 {[%clk 0:00:03.7]} 42. Rf2 {[%clk 0:01:12]} 42... f5 {[%clk
0:00:02.5]} 43. Kg7 {[%clk 0:01:09.7]} 43... Rd6 {[%clk 0:00:02.4]} 44. Rf4+
{[%clk 0:01:04]} 44... Kh3 {[%clk 0:00:02]} 45. Rxf5 {[%clk 0:01:03.3]} 45...
Rd2 {[%clk 0:00:02]} 46. Rc5 {[%clk 0:01:02.5]} 46... Rd1 {[%clk 0:00:02]} 47.
Ra5 {[%clk 0:00:57.3]} 47... Rc1 {[%clk 0:00:02.3]} 48. c4 {[%clk 0:00:55.1]}
48... Rc2 {[%clk 0:00:02.2]} 49. Rxa3 {[%clk 0:00:54.6]} 1-0

[Event "Early-Titled-Tuesday-Blitz-March-05-2024"]
[Site "Chess.com"]
[Date "2024.03.05"]
[Round "3"]
[White "rhungaski"]
[Black "JoliyRoger"]
[Result "1-0"]
[WhiteElo "2595"]
[BlackElo "2425"]
[TimeControl "180+1"]
[EndTime "8:31:08 PST"]
[Termination "rhungaski won on time"]

1. e4 {[%clk 0:03:00.9]} 1... c6 {[%clk 0:02:59.7]} 2. d4 {[%clk 0:03:00.8]}
2... d5 {[%clk 0:03:00.6]} 3. e5 {[%clk 0:03:01.6]} 3... Bf5 {[%clk 0:03:00.1]}
4. g4 {[%clk 0:03:01.6]} 4... Bd7 {[%clk 0:02:48]} 5. Nc3 {[%clk 0:03:00.7]}
5... e6 {[%clk 0:02:45.3]} 6. Be3 {[%clk 0:03:01.3]} 6... Qb6 {[%clk 0:02:43.5]}
7. a3 {[%clk 0:03:01.3]} 7... c5 {[%clk 0:02:43.5]} 8. Nge2 {[%clk 0:02:45.3]}
8... Nc6 {[%clk 0:02:29.4]} 9. f4 {[%clk 0:02:42.3]} 9... h5 {[%clk 0:02:19.1]}
10. gxh5 {[%clk 0:02:37.2]} 10... Nh6 {[%clk 0:02:13]} 11. dxc5 {[%clk
0:02:23.5]} 11... Bxc5 {[%clk 0:02:12.3]} 12. Na4 {[%clk 0:02:24.2]} 12... Qa5+
{[%clk 0:01:12.4]} 13. b4 {[%clk 0:02:24.1]} 13... Qxa4 {[%clk 0:01:12.8]} 14.
Bxc5 {[%clk 0:02:23.8]} 14... Ne7 {[%clk 0:01:06.8]} 15. Nc3 {[%clk 0:01:16.6]}
15... Qc6 {[%clk 0:01:04.7]} 16. Bb5 {[%clk 0:01:16.5]} 16... Qc8 {[%clk
0:01:04.5]} 17. Bd3 {[%clk 0:01:08.9]} 17... b6 {[%clk 0:00:55.1]} 18. Nb5
{[%clk 0:01:02.7]} 18... Nef5 {[%clk 0:00:39.4]} 19. Nd6+ {[%clk 0:01:02.6]}
19... Nxd6 {[%clk 0:00:39.1]} 20. Bxd6 {[%clk 0:01:03.5]} 20... Qc3+ {[%clk
0:00:31]} 21. Ke2 {[%clk 0:00:48.6]} 21... Qd4 {[%clk 0:00:16.9]} 22. Qd2 {[%clk
0:00:42.4]} 22... Ng4 {[%clk 0:00:16.7]} 23. Kf3 {[%clk 0:00:37.1]} 23... Nh6
{[%clk 0:00:10.3]} 24. Rhg1 {[%clk 0:00:33.7]} 24... Nf5 {[%clk 0:00:08.9]} 25.
c3 {[%clk 0:00:30.2]} 25... Qxg1 {[%clk 0:00:03.7]} 26. Rxg1 {[%clk 0:00:29.7]}
26... Rxh5 {[%clk 0:00:01.3]} 27. Bxf5 {[%clk 0:00:29.8]} 27... Rxf5 {[%clk
0:00:01.6]} 28. Rxg7 {[%clk 0:00:29.8]} 28... O-O-O {[%clk 0:00:02.5]} 29. Qg2
{[%clk 0:00:17.4]} 29... d4 {[%clk 0:00:01.5]} 30. Ke2 {[%clk 0:00:14.4]} 1-0

[Event "Early-Titled-Tuesday-Blitz-March-05-2024"]
[Site "Chess.com"]
[Date "2024.03.05"]
[Round "3"]
[White "RantomOpening"]
[Black "David_George21"]
[Result "0-1"]
[WhiteElo "2573"]
[BlackElo "2434"]
[TimeControl "180+1"]
[EndTime "8:31:11 PST"]
[Termination "David_George21 won by resignation"]

1. e4 {[%clk 0:03:00.9]} 1... c5 {[%clk 0:02:58.8]} 2. c3 {[%clk 0:02:58.6]}
2... Nf6 {[%clk 0:02:50.7]} 3. e5 {[%clk 0:02:58]} 3... Nd5 {[%clk 0:02:50.8]}
4. d4 {[%clk 0:02:57.8]} 4... d6 {[%clk 0:02:46.7]} 5. Nf3 {[%clk 0:02:57.6]}
5... Nc6 {[%clk 0:02:46.3]} 6. Bc4 {[%clk 0:02:56.5]} 6... dxe5 {[%clk
0:02:43.5]} 7. dxe5 {[%clk 0:02:53.7]} 7... e6 {[%clk 0:02:42.3]} 8. O-O {[%clk
0:02:52.6]} 8... Be7 {[%clk 0:02:40.8]} 9. Qe2 {[%clk 0:02:51.7]} 9... O-O
{[%clk 0:02:37.7]} 10. Rd1 {[%clk 0:02:51.4]} 10... a6 {[%clk 0:02:12.5]} 11. a4
{[%clk 0:02:36]} 11... Na5 {[%clk 0:02:02.2]} 12. Bd3 {[%clk 0:02:33.9]} 12...
Qb6 {[%clk 0:01:42.2]} 13. Bg5 {[%clk 0:02:30.7]} 13... Bxg5 {[%clk 0:01:37.1]}
14. Bxh7+ {[%clk 0:02:28.6]} 14... Kxh7 {[%clk 0:01:31.8]} 15. Nxg5+ {[%clk
0:02:28.7]} 15... Kg6 {[%clk 0:01:09.1]} 16. Qg4 {[%clk 0:02:11.3]} 16... f5
{[%clk 0:00:54.4]} 17. Qh4 {[%clk 0:02:10.6]} 17... Qc7 {[%clk 0:00:30.5]} 18.
Qh7+ {[%clk 0:02:03.6]} 18... Kxg5 {[%clk 0:00:30.5]} 19. h4+ {[%clk 0:01:57]}
19... Kf4 {[%clk 0:00:30.8]} 20. Qg6 {[%clk 0:01:54.4]} 20... Kxe5 {[%clk
0:00:27.6]} 21. b4 {[%clk 0:01:45.1]} 21... Nb3 {[%clk 0:00:26.3]} 22. Ra2
{[%clk 0:01:42.3]} 22... Nf4 {[%clk 0:00:23.2]} 23. Qg3 {[%clk 0:01:40.1]} 23...
Kf6 {[%clk 0:00:20.6]} 24. Kh1 {[%clk 0:01:35.6]} 24... Kf7 {[%clk 0:00:20.2]}
25. Nd2 {[%clk 0:01:25.6]} 25... Nxd2 {[%clk 0:00:19.9]} 26. Raxd2 {[%clk
0:01:26.5]} 26... b6 {[%clk 0:00:19.4]} 27. Qg5 {[%clk 0:01:22.4]} 27... Qe5
{[%clk 0:00:19.4]} 28. Rd7+ {[%clk 0:01:20.2]} 28... Bxd7 {[%clk 0:00:19.6]} 29.
Rxd7+ {[%clk 0:01:21.1]} 29... Kg8 {[%clk 0:00:20.5]} 30. h5 {[%clk 0:01:14.3]}
30... Rf7 {[%clk 0:00:18.5]} 31. Rd1 {[%clk 0:01:11]} 31... Raf8 {[%clk
0:00:17.4]} 32. bxc5 {[%clk 0:00:33.3]} 32... Rf6 {[%clk 0:00:17]} 33. cxb6
{[%clk 0:00:31.4]} 33... Rh6 {[%clk 0:00:17]} 34. Kg1 {[%clk 0:00:28.9]} 34...
Rxh5 {[%clk 0:00:17.1]} 35. Qxh5 {[%clk 0:00:25.2]} 35... Nxh5 {[%clk
0:00:16.2]} 36. b7 {[%clk 0:00:25.6]} 36... Qe2 {[%clk 0:00:15.6]} 37. Rd7
{[%clk 0:00:24.3]} 37... Qe1+ {[%clk 0:00:14.1]} 38. Kh2 {[%clk 0:00:24.2]}
38... Qxf2 {[%clk 0:00:14.1]} 0-1

[Event "Early-Titled-Tuesday-Blitz-March-05-2024"]
[Site "Chess.com"]
[Date "2024.03.05"]
[Round "3"]
[White "Titus369"]
[Black "jeetjain"]
[Result "1-0"]
[WhiteElo "2639"]
[BlackElo "2470"]
[TimeControl "180+1"]
[EndTime "8:31:12 PST"]
[Termination "Titus369 won on time"]

1. e4 {[%clk 0:03:00.9]} 1... g6 {[%clk 0:02:58.7]} 2. d4 {[%clk 0:03:00.1]}
2... Bg7 {[%clk 0:02:59.2]} 3. Nf3 {[%clk 0:02:58.8]} 3... c6 {[%clk 0:02:59.1]}
4. a4 {[%clk 0:02:54.4]} 4... d5 {[%clk 0:02:59.2]} 5. e5 {[%clk 0:02:52.5]}
5... Bg4 {[%clk 0:02:59.2]} 6. h3 {[%clk 0:02:52.4]} 6... Bxf3 {[%clk
0:02:59.4]} 7. Qxf3 {[%clk 0:02:53.3]} 7... e6 {[%clk 0:02:59.7]} 8. Nd2 {[%clk
0:02:47.5]} 8... c5 {[%clk 0:02:58.3]} 9. Bb5+ {[%clk 0:02:44.2]} 9... Nc6
{[%clk 0:02:58.4]} 10. Qc3 {[%clk 0:02:36.4]} 10... cxd4 {[%clk 0:02:47.2]} 11.
Bxc6+ {[%clk 0:02:35.4]} 11... bxc6 {[%clk 0:02:48.1]} 12. Qxc6+ {[%clk
0:02:35.5]} 12... Kf8 {[%clk 0:02:48.7]} 13. Qc5+ {[%clk 0:02:35.8]} 13... Ne7
{[%clk 0:02:47.6]} 14. Qxd4 {[%clk 0:02:36]} 14... Rc8 {[%clk 0:02:47.2]} 15. f4
{[%clk 0:02:30.4]} 15... Rxc2 {[%clk 0:02:44.9]} 16. O-O {[%clk 0:02:22.4]}
16... Qb6 {[%clk 0:02:41.9]} 17. Qxb6 {[%clk 0:02:19.3]} 17... axb6 {[%clk
0:02:42.8]} 18. a5 {[%clk 0:02:19.3]} 18... bxa5 {[%clk 0:02:40.2]} 19. Rxa5
{[%clk 0:02:20.2]} 19... Nc6 {[%clk 0:02:39.4]} 20. Rb5 {[%clk 0:02:14.3]} 20...
Ke7 {[%clk 0:02:38.5]} 21. Rb7+ {[%clk 0:02:13.5]} 21... Ke8 {[%clk 0:02:32.2]}
22. Nf3 {[%clk 0:02:04.5]} 22... Bf8 {[%clk 0:02:29.8]} 23. Be3 {[%clk
0:01:59.7]} 23... Nd8 {[%clk 0:02:08.1]} 24. Rb5 {[%clk 0:01:50.2]} 24... Be7
{[%clk 0:02:05.7]} 25. Ra1 {[%clk 0:01:47.4]} 25... Rc7 {[%clk 0:02:02.6]} 26.
Ra8 {[%clk 0:01:28.4]} 26... Kd7 {[%clk 0:02:02.7]} 27. Rbb8 {[%clk 0:01:24.4]}
27... h6 {[%clk 0:02:01.9]} 28. b4 {[%clk 0:01:19.9]} 28... Rh7 {[%clk
0:01:44.3]} 29. Bb6 {[%clk 0:01:17.4]} 29... Rc1+ {[%clk 0:01:42.9]} 30. Kh2
{[%clk 0:01:14.7]} 30... Rh8 {[%clk 0:01:32]} 31. Ra7+ {[%clk 0:01:11.6]} 31...
Ke8 {[%clk 0:01:30]} 32. Nd4 {[%clk 0:00:56.8]} 32... g5 {[%clk 0:01:26.3]} 33.
b5 {[%clk 0:00:46.4]} 33... gxf4 {[%clk 0:01:25.6]} 34. Bxd8 {[%clk 0:00:38.6]}
34... Bxd8 {[%clk 0:01:20.7]} 35. Nc6 {[%clk 0:00:38]} 35... Kf8 {[%clk
0:01:17.6]} 36. Rxd8+ {[%clk 0:00:36.4]} 36... Kg7 {[%clk 0:01:18.5]} 37. Rxh8
{[%clk 0:00:36.3]} 37... Kxh8 {[%clk 0:01:19.4]} 38. Rxf7 {[%clk 0:00:36.1]} 1-0

[Event "Early-Titled-Tuesday-Blitz-March-05-2024"]
[Site "Chess.com"]
[Date "2024.03.05"]
[Round "3"]
[White "Dyadya81"]
[Black "KononenkoD"]
[Result "1-0"]
[WhiteElo "2870"]
[BlackElo "2617"]
[TimeControl "180+1"]
[EndTime "8:31:13 PST"]
[Termination "Dyadya81 won by resignation"]

1. e4 {[%clk 0:03:00.9]} 1... c6 {[%clk 0:03:00]} 2. d3 {[%clk 0:03:00.6]} 2...
d5 {[%clk 0:03:00.9]} 3. Nf3 {[%clk 0:03:01.2]} 3... dxe4 {[%clk 0:03:00.2]} 4.
dxe4 {[%clk 0:03:02.1]} 4... Qxd1+ {[%clk 0:03:00.6]} 5. Kxd1 {[%clk 0:03:03]}
5... g6 {[%clk 0:03:01.3]} 6. c3 {[%clk 0:03:00.1]} 6... Bh6 {[%clk 0:02:59.2]}
7. Bxh6 {[%clk 0:02:55.5]} 7... Nxh6 {[%clk 0:03:00.1]} 8. h4 {[%clk 0:02:56.2]}
8... Ng4 {[%clk 0:02:59.1]} 9. Ke1 {[%clk 0:02:54.9]} 9... e5 {[%clk 0:02:57.2]}
10. h5 {[%clk 0:02:52.8]} 10... O-O {[%clk 0:02:32.6]} 11. Nbd2 {[%clk
0:02:50.1]} 11... Nd7 {[%clk 0:02:26.7]} 12. Nc4 {[%clk 0:02:42.4]} 12... Nc5
{[%clk 0:02:23.8]} 13. Nfd2 {[%clk 0:02:34.9]} 13... b5 {[%clk 0:01:51.5]} 14.
Na5 {[%clk 0:02:34.9]} 14... f5 {[%clk 0:01:47.4]} 15. hxg6 {[%clk 0:02:30.6]}
15... hxg6 {[%clk 0:01:45.1]} 16. exf5 {[%clk 0:01:49.3]} 16... Bxf5 {[%clk
0:01:27.9]} 17. Nxc6 {[%clk 0:01:49.3]} 17... Bd3 {[%clk 0:01:17]} 18. f3 {[%clk
0:01:35.3]} 18... Ne3 {[%clk 0:01:14.2]} 19. Bxd3 {[%clk 0:01:33.5]} 19... Nxd3+
{[%clk 0:01:09.8]} 20. Ke2 {[%clk 0:01:33.7]} 20... Nc2 {[%clk 0:00:58.2]} 21.
Kxd3 {[%clk 0:01:29.3]} 21... Nxa1 {[%clk 0:00:58.2]} 22. Rxa1 {[%clk 0:01:30]}
22... Rfe8 {[%clk 0:00:51.8]} 23. Re1 {[%clk 0:01:23.9]} 23... Kg7 {[%clk
0:00:49.2]} 24. Nxe5 {[%clk 0:01:14.7]} 24... Rad8+ {[%clk 0:00:49]} 25. Kc2
{[%clk 0:01:15]} 25... g5 {[%clk 0:00:43]} 26. Re4 {[%clk 0:01:13.3]} 26... Rd5
{[%clk 0:00:36.4]} 27. Ng4 {[%clk 0:01:07]} 27... Rxe4 {[%clk 0:00:36]} 28. Nxe4
{[%clk 0:01:03.2]} 28... Kg6 {[%clk 0:00:33]} 29. b4 {[%clk 0:01:02.1]} 29...
Rd8 {[%clk 0:00:25.9]} 30. Ne3 {[%clk 0:01:00.4]} 30... Rh8 {[%clk 0:00:23.8]}
31. Kb3 {[%clk 0:00:57.1]} 31... Rh1 {[%clk 0:00:23.7]} 32. c4 {[%clk
0:00:55.7]} 32... Rb1+ {[%clk 0:00:20.6]} 33. Kc3 {[%clk 0:00:54.1]} 33... bxc4
{[%clk 0:00:18.1]} 34. Kxc4 {[%clk 0:00:51.2]} 34... Re1 {[%clk 0:00:17.1]} 35.
Kd4 {[%clk 0:00:46.3]} 35... Rb1 {[%clk 0:00:15.3]} 36. a3 {[%clk 0:00:43.3]}
36... Rb3 {[%clk 0:00:13.6]} 37. Nc4 {[%clk 0:00:41.9]} 37... Rb1 {[%clk
0:00:12.2]} 38. g4 {[%clk 0:00:40.6]} 38... Rf1 {[%clk 0:00:11.3]} 39. Ned2
{[%clk 0:00:40.4]} 39... Rc1 {[%clk 0:00:08.7]} 40. b5 {[%clk 0:00:40.1]} 40...
Ra1 {[%clk 0:00:07.6]} 41. Kc5 {[%clk 0:00:39.7]} 41... Rc1 {[%clk 0:00:07.5]}
42. a4 {[%clk 0:00:39.8]} 42... Rc3 {[%clk 0:00:07.1]} 43. a5 {[%clk 0:00:39.8]}
43... Kf6 {[%clk 0:00:07.3]} 44. b6 {[%clk 0:00:40.2]} 44... Ke6 {[%clk
0:00:07.4]} 45. bxa7 {[%clk 0:00:39.7]} 45... Kd7 {[%clk 0:00:07.9]} 46. a8=Q
{[%clk 0:00:39.7]} 1-0

[Event "Early-Titled-Tuesday-Blitz-March-05-2024"]
[Site "Chess.com"]
[Date "2024.03.05"]
[Round "3"]
[White "scarabee43"]
[Black "Hongjin"]
[Result "0-1"]
[WhiteElo "2892"]
[BlackElo "2684"]
[TimeControl "180+1"]
[EndTime "8:31:15 PST"]
[Termination "Hongjin won by resignation"]

1. Nf3 {[%clk 0:03:00.9]} 1... d5 {[%clk 0:02:59.6]} 2. e3 {[%clk 0:03:01]} 2...
e6 {[%clk 0:02:59.3]} 3. c4 {[%clk 0:03:00.6]} 3... Nf6 {[%clk 0:02:59.9]} 4.
Nc3 {[%clk 0:03:00.4]} 4... Be7 {[%clk 0:03:00.4]} 5. b3 {[%clk 0:03:00.6]} 5...
c5 {[%clk 0:03:00.7]} 6. Bb2 {[%clk 0:02:56.2]} 6... Nc6 {[%clk 0:03:00.8]} 7.
cxd5 {[%clk 0:02:55.5]} 7... exd5 {[%clk 0:03:01.7]} 8. d4 {[%clk 0:02:55.2]}
8... Bg4 {[%clk 0:02:46.9]} 9. Be2 {[%clk 0:02:55.4]} 9... O-O {[%clk
0:02:46.6]} 10. O-O {[%clk 0:02:53.9]} 10... Re8 {[%clk 0:02:35.1]} 11. dxc5
{[%clk 0:02:48.6]} 11... Bxc5 {[%clk 0:02:36]} 12. Rc1 {[%clk 0:02:46]} 12...
Bb6 {[%clk 0:02:28.4]} 13. Na4 {[%clk 0:02:44.3]} 13... Ne4 {[%clk 0:02:17.3]}
14. Nxb6 {[%clk 0:02:43.1]} 14... axb6 {[%clk 0:02:18.2]} 15. a3 {[%clk
0:02:38.7]} 15... Qd7 {[%clk 0:02:07.6]} 16. Rc2 {[%clk 0:02:34.5]} 16... Rad8
{[%clk 0:02:01.9]} 17. Qa1 {[%clk 0:02:26]} 17... Bxf3 {[%clk 0:00:59.3]} 18.
Bxf3 {[%clk 0:02:25]} 18... d4 {[%clk 0:00:59.7]} 19. Rc4 {[%clk 0:01:16]} 19...
b5 {[%clk 0:00:51.1]} 20. Rcc1 {[%clk 0:00:57]} 20... Nd2 {[%clk 0:00:32.1]} 21.
Bxc6 {[%clk 0:00:54.8]} 21... bxc6 {[%clk 0:00:31.6]} 22. Bxd4 {[%clk
0:00:54.2]} 22... Nxb3 {[%clk 0:00:31.7]} 23. Qc3 {[%clk 0:00:45.4]} 23... Nxc1
{[%clk 0:00:31.2]} 24. Rxc1 {[%clk 0:00:46.1]} 24... Re6 {[%clk 0:00:27.9]} 25.
h4 {[%clk 0:00:38.3]} 25... f6 {[%clk 0:00:24.8]} 26. Qb3 {[%clk 0:00:36.4]}
26... Qd5 {[%clk 0:00:22.1]} 27. Qb4 {[%clk 0:00:33.7]} 27... Qe4 {[%clk
0:00:12.9]} 28. h5 {[%clk 0:00:32]} 28... Rd5 {[%clk 0:00:11.3]} 29. h6 {[%clk
0:00:28.5]} 29... gxh6 {[%clk 0:00:10.2]} 30. Qa5 {[%clk 0:00:26.2]} 30... Rg5
{[%clk 0:00:07.8]} 31. f3 {[%clk 0:00:15.8]} 31... Qxf3 {[%clk 0:00:08]} 32.
Qd8+ {[%clk 0:00:16.3]} 32... Kg7 {[%clk 0:00:06.7]} 33. Qd7+ {[%clk 0:00:15.1]}
33... Kg6 {[%clk 0:00:06.7]} 34. Rc2 {[%clk 0:00:13.6]} 34... Qd1+ {[%clk
0:00:05.6]} 35. Kf2 {[%clk 0:00:14.2]} 35... Qxc2+ {[%clk 0:00:05.6]} 0-1